[Event "Early-Titled-Tuesday-Blitz-March-19-2024"]
[Site "Chess.com"]
[Date "2024.03.19"]
[Round "5"]
[White "djokovic74"]
[Black "Slovineanu"]
[Result "1/2-1/2"]
[WhiteElo "2737"]
[BlackElo "2503"]
[TimeControl "180+1"]
[EndTime "8:58:52 PDT"]
[Termination "Game drawn by repetition"]

1. c4 {[%clk 0:03:00.2]} 1... e5 {[%clk 0:02:59.1]} 2. Nc3 {[%clk 0:02:59.7]}
2... Bb4 {[%clk 0:02:55.3]} 3. Nd5 {[%clk 0:02:57.8]} 3... Be7 {[%clk 0:02:55]}
4. d4 {[%clk 0:02:57.9]} 4... exd4 {[%clk 0:02:53.8]} 5. Qxd4 {[%clk 0:02:58.5]}
5... Nf6 {[%clk 0:02:53.9]} 6. Nxe7 {[%clk 0:02:58.9]} 6... Qxe7 {[%clk
0:02:53.8]} 7. Bg5 {[%clk 0:02:59.3]} 7... Nc6 {[%clk 0:02:53.2]} 8. Qc3 {[%clk
0:02:59.5]} 8... d6 {[%clk 0:02:52.7]} 9. Nf3 {[%clk 0:02:58.6]} 9... Rg8 {[%clk
0:02:49.9]} 10. e3 {[%clk 0:02:54]} 10... Ne4 {[%clk 0:02:48.3]} 11. Bxe7 {[%clk
0:02:53.3]} 11... Nxc3 {[%clk 0:02:48.2]} 12. Bh4 {[%clk 0:02:53.3]} 12... Ne4
{[%clk 0:02:42.4]} 13. Bd3 {[%clk 0:02:51.8]} 13... f5 {[%clk 0:02:23.4]} 14.
O-O-O {[%clk 0:02:50.8]} 14... a5 {[%clk 0:02:17]} 15. a3 {[%clk 0:02:40.2]}
15... a4 {[%clk 0:02:13.8]} 16. Bc2 {[%clk 0:02:37.1]} 16... Be6 {[%clk
0:02:03.6]} 17. Nd4 {[%clk 0:02:31.5]} 17... Bxc4 {[%clk 0:01:21.7]} 18. Nxf5
{[%clk 0:02:30.5]} 18... Nc5 {[%clk 0:01:21.6]} 19. Nd4 {[%clk 0:02:23.9]} 19...
Nxd4 {[%clk 0:01:15.4]} 20. exd4 {[%clk 0:02:23.4]} 20... Nb3+ {[%clk
0:01:15.6]} 21. Kb1 {[%clk 0:02:21]} 21... Kf7 {[%clk 0:01:10.9]} 22. d5 {[%clk
0:01:43.1]} 22... Rge8 {[%clk 0:01:03.1]} 23. Bf5 {[%clk 0:01:36.3]} 23... Nc5
{[%clk 0:00:55]} 24. Rhe1 {[%clk 0:01:25]} 24... g6 {[%clk 0:00:48.3]} 25. Bc2
{[%clk 0:01:08.2]} 25... Rxe1 {[%clk 0:00:43]} 26. Rxe1 {[%clk 0:01:08.1]} 26...
Re8 {[%clk 0:00:43.6]} 27. Rd1 {[%clk 0:01:08.4]} 27... Re5 {[%clk 0:00:42.3]}
28. f3 {[%clk 0:00:56.6]} 28... Rxd5 {[%clk 0:00:41.5]} 29. Re1 {[%clk
0:00:57.3]} 29... Re5 {[%clk 0:00:40.7]} 30. Rxe5 {[%clk 0:00:57.6]} 30... dxe5
{[%clk 0:00:40.8]} 31. Bf2 {[%clk 0:00:58.4]} 31... Nb3 {[%clk 0:00:28.6]} 32.
h4 {[%clk 0:00:56.2]} 32... Ke6 {[%clk 0:00:24.6]} 33. Be3 {[%clk 0:00:48.9]}
33... b5 {[%clk 0:00:19.2]} 34. Be4 {[%clk 0:00:39.9]} 34... Bd5 {[%clk
0:00:16.6]} 35. Bd3 {[%clk 0:00:39.7]} 35... c6 {[%clk 0:00:15.4]} 36. h5 {[%clk
0:00:38.3]} 36... gxh5 {[%clk 0:00:13.6]} 37. Bxh7 {[%clk 0:00:39]} 37... Kf6
{[%clk 0:00:12.6]} 38. Kc2 {[%clk 0:00:33.3]} 38... Nd4+ {[%clk 0:00:12.6]} 39.
Kd2 {[%clk 0:00:30.7]} 39... Ne6 {[%clk 0:00:12.1]} 40. Ke1 {[%clk 0:00:26.2]}
40... Nf4 {[%clk 0:00:12.1]} 41. Kf2 {[%clk 0:00:26.2]} 41... h4 {[%clk
0:00:10.9]} 42. Bc2 {[%clk 0:00:25.2]} 42... Bc4 {[%clk 0:00:10.6]} 43. Be4
{[%clk 0:00:24]} 43... Nd3+ {[%clk 0:00:10.7]} 44. Bxd3 {[%clk 0:00:24.4]} 44...
Bxd3 {[%clk 0:00:10.8]} 45. Bb6 {[%clk 0:00:25.1]} 45... Kf5 {[%clk 0:00:10.1]}
46. Bd8 {[%clk 0:00:24.6]} 46... e4 {[%clk 0:00:10.4]} 47. Bxh4 {[%clk
0:00:18.8]} 47... exf3 {[%clk 0:00:10.6]} 48. Kxf3 {[%clk 0:00:19.6]} 48... Be4+
{[%clk 0:00:10.1]} 49. Kf2 {[%clk 0:00:20.1]} 49... Bd5 {[%clk 0:00:10.5]} 50.
Be7 {[%clk 0:00:18.5]} 50... Kg6 {[%clk 0:00:10.7]} 51. g4 {[%clk 0:00:18.1]}
51... Be4 {[%clk 0:00:10.8]} 52. Ke3 {[%clk 0:00:18.1]} 52... Bd5 {[%clk
0:00:11.4]} 53. Kf4 {[%clk 0:00:18.6]} 53... Bh1 {[%clk 0:00:12]} 54. g5 {[%clk
0:00:19]} 54... Bg2 {[%clk 0:00:12.3]} 55. Ke5 {[%clk 0:00:19.4]} 55... Bh1
{[%clk 0:00:12.8]} 56. Kd6 {[%clk 0:00:19.8]} 56... Bg2 {[%clk 0:00:13.1]} 57.
Kc5 {[%clk 0:00:20.4]} 57... Bh1 {[%clk 0:00:13.4]} 58. Bf6 {[%clk 0:00:21.3]}
58... Bg2 {[%clk 0:00:13.5]} 59. Kb4 {[%clk 0:00:22.2]} 59... Bh1 {[%clk
0:00:13.9]} 60. Kc3 {[%clk 0:00:23.1]} 60... Bg2 {[%clk 0:00:13.6]} 61. Kd4
{[%clk 0:00:24]} 61... Bh1 {[%clk 0:00:13.9]} 62. Ke3 {[%clk 0:00:24.9]} 62...
Bg2 {[%clk 0:00:14.1]} 63. Kd2 {[%clk 0:00:25.8]} 63... Bd5 {[%clk 0:00:14.5]}
64. Kc2 {[%clk 0:00:26.7]} 64... Bh1 {[%clk 0:00:14.4]} 65. Kc3 {[%clk
0:00:27.6]} 65... Bg2 {[%clk 0:00:14.9]} 66. b3 {[%clk 0:00:27.8]} 66... axb3
{[%clk 0:00:14.3]} 67. Kxb3 {[%clk 0:00:28.4]} 67... Bh1 {[%clk 0:00:14.4]} 68.
Kb4 {[%clk 0:00:28.4]} 68... Bg2 {[%clk 0:00:14.5]} 69. Kc5 {[%clk 0:00:29.1]}
69... Bh1 {[%clk 0:00:14.9]} 70. Bd8 {[%clk 0:00:29.4]} 70... Bg2 {[%clk
0:00:15.2]} 71. Bf6 {[%clk 0:00:30]} 71... Bh1 {[%clk 0:00:15.4]} 72. Kd4 {[%clk
0:00:30.9]} 72... Bg2 {[%clk 0:00:15.7]} 73. Kc3 {[%clk 0:00:31.6]} 73... Bh1
{[%clk 0:00:16]} 74. Kb4 {[%clk 0:00:32.4]} 74... Bg2 {[%clk 0:00:16]} 75. Bd8
{[%clk 0:00:33.2]} 75... Bh1 {[%clk 0:00:16.3]} 76. Ka5 {[%clk 0:00:34]} 76...
Bg2 {[%clk 0:00:16.6]} 77. Kb6 {[%clk 0:00:34.5]} 77... Be4 {[%clk 0:00:16.6]}
78. Kc5 {[%clk 0:00:35.3]} 78... Bh1 {[%clk 0:00:16.5]} 79. Bf6 {[%clk
0:00:35.9]} 79... Bg2 {[%clk 0:00:15.1]} 80. Kb4 {[%clk 0:00:36.6]} 80... Bh1
{[%clk 0:00:14.8]} 81. Kc3 {[%clk 0:00:37.2]} 81... Bg2 {[%clk 0:00:14.9]} 82.
Kb2 {[%clk 0:00:37.9]} 82... Bh1 {[%clk 0:00:15]} 83. Kb3 {[%clk 0:00:38.5]}
83... Bg2 {[%clk 0:00:15.5]} 84. Kb4 {[%clk 0:00:39]} 84... Bh1 {[%clk 0:00:16]}
85. Ka5 {[%clk 0:00:39.7]} 85... Bg2 {[%clk 0:00:13.5]} 86. Kb4 {[%clk
0:00:40.3]} 1/2-1/2

[Event "Early-Titled-Tuesday-Blitz-March-19-2024"]
[Site "Chess.com"]
[Date "2024.03.19"]
[Round "5"]
[White "Rodalquilar"]
[Black "chess94cu"]
[Result "1-0"]
[WhiteElo "2794"]
[BlackElo "2627"]
[TimeControl "180+1"]
[EndTime "8:58:56 PDT"]
[Termination "Rodalquilar won by checkmate"]

1. d4 {[%clk 0:03:00.9]} 1... Nf6 {[%clk 0:02:59.4]} 2. Nf3 {[%clk 0:03:01.2]}
2... e6 {[%clk 0:02:59.5]} 3. Bf4 {[%clk 0:03:01.5]} 3... d6 {[%clk 0:02:59.5]}
4. e3 {[%clk 0:03:00.8]} 4... Nbd7 {[%clk 0:03:00]} 5. h3 {[%clk 0:02:56.7]}
5... c5 {[%clk 0:02:56.3]} 6. c3 {[%clk 0:02:53]} 6... b6 {[%clk 0:02:54]} 7. a4
{[%clk 0:02:50.3]} 7... a6 {[%clk 0:02:52]} 8. Nbd2 {[%clk 0:02:47.8]} 8... cxd4
{[%clk 0:02:51.2]} 9. exd4 {[%clk 0:02:46.8]} 9... Be7 {[%clk 0:02:49.7]} 10.
Bd3 {[%clk 0:02:45]} 10... O-O {[%clk 0:02:49.2]} 11. O-O {[%clk 0:02:45.2]}
11... Bb7 {[%clk 0:02:49.8]} 12. Bh2 {[%clk 0:02:42.2]} 12... Re8 {[%clk
0:02:49.5]} 13. Nc4 {[%clk 0:02:41.1]} 13... Qc7 {[%clk 0:02:49.3]} 14. Ne3
{[%clk 0:02:41.5]} 14... Bf8 {[%clk 0:02:47.3]} 15. Nd2 {[%clk 0:02:41.7]} 15...
e5 {[%clk 0:02:37.5]} 16. Re1 {[%clk 0:02:40]} 16... h6 {[%clk 0:02:31]} 17. Rc1
{[%clk 0:02:38.8]} 17... Nd5 {[%clk 0:02:04.2]} 18. Nxd5 {[%clk 0:01:32.2]}
18... Bxd5 {[%clk 0:02:05.1]} 19. dxe5 {[%clk 0:01:08.9]} 19... dxe5 {[%clk
0:02:00.7]} 20. Qh5 {[%clk 0:01:08.9]} 20... Qc6 {[%clk 0:01:52.1]} 21. Be4
{[%clk 0:00:52.9]} 21... Bxe4 {[%clk 0:01:36.3]} 22. Nxe4 {[%clk 0:00:53]} 22...
g6 {[%clk 0:01:36.1]} 23. Qd1 {[%clk 0:00:49.2]} 23... Rad8 {[%clk 0:01:30.6]}
24. Qb3 {[%clk 0:00:39.6]} 24... b5 {[%clk 0:01:10.7]} 25. axb5 {[%clk
0:00:39.6]} 25... axb5 {[%clk 0:01:10.3]} 26. Bg3 {[%clk 0:00:37.3]} 26... Kg7
{[%clk 0:01:00.3]} 27. Nd2 {[%clk 0:00:28.4]} 27... f5 {[%clk 0:00:53.7]} 28.
Nf3 {[%clk 0:00:28.5]} 28... Bd6 {[%clk 0:00:47.6]} 29. Rcd1 {[%clk 0:00:26.7]}
29... Bb8 {[%clk 0:00:48]} 30. Qd5 {[%clk 0:00:25.1]} 30... Qxd5 {[%clk
0:00:17.6]} 31. Rxd5 {[%clk 0:00:26]} 31... e4 {[%clk 0:00:18]} 32. Nd4 {[%clk
0:00:20]} 32... Nf8 {[%clk 0:00:09.2]} 33. Rxb5 {[%clk 0:00:14.7]} 33... f4
{[%clk 0:00:09.5]} 34. Bh2 {[%clk 0:00:12.9]} 34... Kg8 {[%clk 0:00:10]} 35. Rb6
{[%clk 0:00:11.4]} 35... e3 {[%clk 0:00:04.9]} 36. fxe3 {[%clk 0:00:11.3]} 36...
fxe3 {[%clk 0:00:05.6]} 37. Bxb8 {[%clk 0:00:10.2]} 37... Rxb8 {[%clk
0:00:06.5]} 38. Rxb8 {[%clk 0:00:10.7]} 38... Rxb8 {[%clk 0:00:07.4]} 39. b4
{[%clk 0:00:11.5]} 39... Re8 {[%clk 0:00:06.8]} 40. Nc2 {[%clk 0:00:11]} 40...
e2 {[%clk 0:00:05.2]} 41. Nd4 {[%clk 0:00:11.1]} 41... Re3 {[%clk 0:00:05.9]}
42. Nxe2 {[%clk 0:00:10.8]} 42... Ne6 {[%clk 0:00:06.1]} 43. Kf2 {[%clk
0:00:11.4]} 43... Rd3 {[%clk 0:00:06.2]} 44. Ra1 {[%clk 0:00:08.8]} 44... Rd2
{[%clk 0:00:06.1]} 45. Ke3 {[%clk 0:00:09.3]} 45... Rb2 {[%clk 0:00:06.5]} 46.
Ra6 {[%clk 0:00:09.1]} 46... Kf7 {[%clk 0:00:06.5]} 47. g4 {[%clk 0:00:08.3]}
47... h5 {[%clk 0:00:03.9]} 48. gxh5 {[%clk 0:00:07.8]} 48... gxh5 {[%clk
0:00:04.8]} 49. h4 {[%clk 0:00:08.5]} 49... Ng7 {[%clk 0:00:04.3]} 50. Nf4
{[%clk 0:00:07.8]} 50... Nf5+ {[%clk 0:00:03.2]} 51. Kd3 {[%clk 0:00:08.4]}
51... Nxh4 {[%clk 0:00:03.3]} 52. Nxh5 {[%clk 0:00:08.7]} 52... Nf3 {[%clk
0:00:03.4]} 53. Rf6+ {[%clk 0:00:08.5]} 53... Ke7 {[%clk 0:00:03.5]} 54. Rxf3
{[%clk 0:00:09.4]} 54... Rh2 {[%clk 0:00:03.2]} 55. Ng3 {[%clk 0:00:09.3]} 55...
Rb2 {[%clk 0:00:02.1]} 56. Ne4 {[%clk 0:00:09.1]} 56... Ke6 {[%clk 0:00:02.2]}
57. Nc5+ {[%clk 0:00:09.3]} 57... Kd5 {[%clk 0:00:02.5]} 58. c4+ {[%clk
0:00:09.3]} 58... Kc6 {[%clk 0:00:01.3]} 59. Rf6+ {[%clk 0:00:09.4]} 59... Kc7
{[%clk 0:00:01.9]} 60. b5 {[%clk 0:00:09.5]} 60... Kc8 {[%clk 0:00:01.3]} 61.
Kd4 {[%clk 0:00:09.5]} 61... Kb8 {[%clk 0:00:01.2]} 62. Rf7 {[%clk 0:00:09.1]}
62... Rb1 {[%clk 0:00:02.1]} 63. Na6+ {[%clk 0:00:08.6]} 63... Kc8 {[%clk
0:00:02.5]} 64. Rc7+ {[%clk 0:00:06.8]} 64... Kd8 {[%clk 0:00:02.8]} 65. Rg7
{[%clk 0:00:07.5]} 65... Kc8 {[%clk 0:00:03]} 66. Kc5 {[%clk 0:00:07.9]} 66...
Rb2 {[%clk 0:00:02.9]} 67. Kc6 {[%clk 0:00:08]} 67... Kd8 {[%clk 0:00:01.9]} 68.
b6 {[%clk 0:00:08]} 68... Rb1 {[%clk 0:00:02.4]} 69. b7 {[%clk 0:00:08.4]} 69...
Rb2 {[%clk 0:00:02.3]} 70. b8=Q+ {[%clk 0:00:08.8]} 70... Rxb8 {[%clk
0:00:02.7]} 71. Nxb8 {[%clk 0:00:09.4]} 71... Kc8 {[%clk 0:00:03.6]} 72. Rg8#
{[%clk 0:00:08.5]} 1-0

[Event "Early-Titled-Tuesday-Blitz-March-19-2024"]
[Site "Chess.com"]
[Date "2024.03.19"]
[Round "5"]
[White "DanielDardha2005"]
[Black "Yeritsyaan"]
[Result "1/2-1/2"]
[WhiteElo "2852"]
[BlackElo "2652"]
[TimeControl "180+1"]
[EndTime "8:59:08 PDT"]
[Termination "Game drawn - insufficient material"]

1. d4 {[%clk 0:03:00.9]} 1... f5 {[%clk 0:02:58.8]} 2. Nh3 {[%clk 0:02:55.7]}
2... Nf6 {[%clk 0:02:57.7]} 3. c3 {[%clk 0:02:54.1]} 3... g6 {[%clk 0:02:54.2]}
4. Nf4 {[%clk 0:02:51.8]} 4... Bg7 {[%clk 0:02:52.7]} 5. h4 {[%clk 0:02:48.2]}
5... d6 {[%clk 0:02:02.7]} 6. h5 {[%clk 0:02:36.4]} 6... e5 {[%clk 0:02:01.6]}
7. dxe5 {[%clk 0:02:27.1]} 7... dxe5 {[%clk 0:02:02.5]} 8. Qxd8+ {[%clk
0:02:25.3]} 8... Kxd8 {[%clk 0:02:03.4]} 9. h6 {[%clk 0:02:21.8]} 9... Bf8
{[%clk 0:02:02.4]} 10. Nd3 {[%clk 0:02:19.7]} 10... Nc6 {[%clk 0:02:01]} 11. Bg5
{[%clk 0:02:19.3]} 11... Be7 {[%clk 0:02:01.2]} 12. Na3 {[%clk 0:02:19.2]} 12...
Ne4 {[%clk 0:01:56.9]} 13. Bxe7+ {[%clk 0:02:16.9]} 13... Kxe7 {[%clk
0:01:57.8]} 14. Nb5 {[%clk 0:02:15.4]} 14... Be6 {[%clk 0:01:44.6]} 15. Nxc7
{[%clk 0:02:14]} 15... Rac8 {[%clk 0:01:45.2]} 16. Nxe6 {[%clk 0:02:13.8]} 16...
Kxe6 {[%clk 0:01:46]} 17. g3 {[%clk 0:02:09.9]} 17... Na5 {[%clk 0:01:39.9]} 18.
Bg2 {[%clk 0:02:08.2]} 18... Nd6 {[%clk 0:01:38.7]} 19. O-O-O {[%clk 0:02:05.8]}
19... Rhd8 {[%clk 0:01:37.1]} 20. Kc2 {[%clk 0:01:47.3]} 20... b6 {[%clk
0:01:31.6]} 21. Nb4 {[%clk 0:01:40.6]} 21... e4 {[%clk 0:01:31.9]} 22. Nd5
{[%clk 0:01:03.5]} 22... Nc6 {[%clk 0:01:20.7]} 23. Nf4+ {[%clk 0:00:59.9]}
23... Kf7 {[%clk 0:01:14.9]} 24. Kb1 {[%clk 0:00:57.6]} 24... Nc4 {[%clk
0:01:12.1]} 25. g4 {[%clk 0:00:53.3]} 25... N6e5 {[%clk 0:01:03.7]} 26. gxf5
{[%clk 0:00:52.1]} 26... gxf5 {[%clk 0:01:04.6]} 27. Bh3 {[%clk 0:00:52.2]}
27... Ng4 {[%clk 0:00:46.3]} 28. Bxg4 {[%clk 0:00:50.6]} 28... fxg4 {[%clk
0:00:47.2]} 29. e3 {[%clk 0:00:44.4]} 29... Ne5 {[%clk 0:00:45.3]} 30. Kc2
{[%clk 0:00:42]} 30... g3 {[%clk 0:00:25.8]} 31. fxg3 {[%clk 0:00:39.6]} 31...
Ng4 {[%clk 0:00:26.5]} 32. Ng2 {[%clk 0:00:31.6]} 32... Kg6 {[%clk 0:00:23.6]}
33. Rd4 {[%clk 0:00:24.3]} 33... Nxe3+ {[%clk 0:00:19.5]} 34. Nxe3 {[%clk
0:00:23]} 34... Rxd4 {[%clk 0:00:20.1]} 35. Rh4 {[%clk 0:00:23.2]} 35... Rd7
{[%clk 0:00:18.1]} 36. Rxe4 {[%clk 0:00:20.6]} 36... Kxh6 {[%clk 0:00:18.1]} 37.
Rg4 {[%clk 0:00:13.9]} 37... Rf8 {[%clk 0:00:16.8]} 38. Rh4+ {[%clk 0:00:14.2]}
38... Kg5 {[%clk 0:00:15.6]} 39. Rg4+ {[%clk 0:00:12.6]} 39... Kh5 {[%clk
0:00:16.3]} 40. Rh4+ {[%clk 0:00:12.9]} 40... Kg6 {[%clk 0:00:17.1]} 41. Rg4+
{[%clk 0:00:12.9]} 41... Kh6 {[%clk 0:00:17.3]} 42. Kb3 {[%clk 0:00:09.4]} 42...
Rf3 {[%clk 0:00:15.9]} 43. Rh4+ {[%clk 0:00:08.7]} 43... Kg5 {[%clk 0:00:13.4]}
44. Rg4+ {[%clk 0:00:08.6]} 44... Kh5 {[%clk 0:00:13.1]} 45. Rh4+ {[%clk
0:00:08.8]} 45... Kg6 {[%clk 0:00:13.9]} 46. Rg4+ {[%clk 0:00:09.2]} 46... Kh6
{[%clk 0:00:14.7]} 47. Re4 {[%clk 0:00:08.7]} 47... Kg5 {[%clk 0:00:13]} 48.
Re5+ {[%clk 0:00:07.1]} 48... Kf6 {[%clk 0:00:10.8]} 49. Ng4+ {[%clk 0:00:07.3]}
49... Kg7 {[%clk 0:00:10.8]} 50. Rg5+ {[%clk 0:00:06.6]} 50... Kf8 {[%clk
0:00:08.4]} 51. Ne5 {[%clk 0:00:07.1]} 51... Rdf7 {[%clk 0:00:03.9]} 52. Nxf3
{[%clk 0:00:04.7]} 52... Rxf3 {[%clk 0:00:04.8]} 53. a4 {[%clk 0:00:04.2]} 53...
Kf7 {[%clk 0:00:05.2]} 54. a5 {[%clk 0:00:04.3]} 54... Kf6 {[%clk 0:00:04.8]}
55. Rb5 {[%clk 0:00:04.3]} 55... bxa5 {[%clk 0:00:04.4]} 56. Rxa5 {[%clk
0:00:05.2]} 56... Rxg3 {[%clk 0:00:04.8]} 57. Rxa7 {[%clk 0:00:05.7]} 57... h5
{[%clk 0:00:05.5]} 58. Ka4 {[%clk 0:00:04.1]} 58... h4 {[%clk 0:00:05.7]} 59.
Rh7 {[%clk 0:00:04.4]} 59... h3 {[%clk 0:00:04.3]} 60. c4 {[%clk 0:00:04.9]}
60... Kg6 {[%clk 0:00:05]} 61. Rh4 {[%clk 0:00:04.1]} 61... Kg5 {[%clk
0:00:05.5]} 62. Rh8 {[%clk 0:00:04.7]} 62... Kg4 {[%clk 0:00:05.3]} 63. b4
{[%clk 0:00:05.1]} 63... Rc3 {[%clk 0:00:05.3]} 64. c5 {[%clk 0:00:05.2]} 64...
Kg3 {[%clk 0:00:05.8]} 65. Kb5 {[%clk 0:00:05.6]} 65... h2 {[%clk 0:00:06.6]}
66. Kb6 {[%clk 0:00:05.2]} 66... Rc4 {[%clk 0:00:05.6]} 67. Rxh2 {[%clk
0:00:03.1]} 67... Kxh2 {[%clk 0:00:04.1]} 68. b5 {[%clk 0:00:03.6]} 68... Kg3
{[%clk 0:00:04.8]} 69. c6 {[%clk 0:00:04.1]} 69... Kf4 {[%clk 0:00:05.6]} 70. c7
{[%clk 0:00:01.5]} 70... Ke5 {[%clk 0:00:05.7]} 71. Kb7 {[%clk 0:00:01.6]} 71...
Kd6 {[%clk 0:00:04.7]} 72. b6 {[%clk 0:00:02]} 72... Kd7 {[%clk 0:00:04.7]} 73.
Kb8 {[%clk 0:00:02.6]} 73... Rc5 {[%clk 0:00:03.2]} 74. Kb7 {[%clk 0:00:01.7]}
74... Rc4 {[%clk 0:00:03.5]} 75. Kb8 {[%clk 0:00:02.1]} 75... Rc5 {[%clk
0:00:03.3]} 76. b7 {[%clk 0:00:02.6]} 76... Rxc7 {[%clk 0:00:03.4]} 77. Ka8
{[%clk 0:00:03]} 77... Rxb7 {[%clk 0:00:02.1]} 78. Kxb7 {[%clk 0:00:03.9]}
1/2-1/2

[Event "Early-Titled-Tuesday-Blitz-March-19-2024"]
[Site "Chess.com"]
[Date "2024.03.19"]
[Round "5"]
[White "yaguigor"]
[Black "NovakRatko"]
[Result "1/2-1/2"]
[WhiteElo "2560"]
[BlackElo "2408"]
[TimeControl "180+1"]
[EndTime "8:59:27 PDT"]
[Termination "Game drawn by repetition"]

1. Nf3 {[%clk 0:02:54.5]} 1... d5 {[%clk 0:02:56.9]} 2. c4 {[%clk 0:02:53.2]}
2... d4 {[%clk 0:02:55.9]} 3. b4 {[%clk 0:02:51.3]} 3... a5 {[%clk 0:02:54.8]}
4. b5 {[%clk 0:02:50.4]} 4... c5 {[%clk 0:02:54.2]} 5. d3 {[%clk 0:02:48]} 5...
f6 {[%clk 0:02:54.2]} 6. g3 {[%clk 0:02:44.6]} 6... e5 {[%clk 0:02:54.1]} 7. Bg2
{[%clk 0:02:45.4]} 7... Bd6 {[%clk 0:02:52.4]} 8. O-O {[%clk 0:02:44.5]} 8...
Bg4 {[%clk 0:02:52.8]} 9. h3 {[%clk 0:02:42.3]} 9... Be6 {[%clk 0:02:51.2]} 10.
e3 {[%clk 0:02:40]} 10... dxe3 {[%clk 0:02:49.6]} 11. Bxe3 {[%clk 0:02:36.7]}
11... Ne7 {[%clk 0:02:49.6]} 12. Nc3 {[%clk 0:02:35.8]} 12... O-O {[%clk
0:02:47]} 13. Nd2 {[%clk 0:02:34.2]} 13... Nd7 {[%clk 0:02:45.6]} 14. Nde4
{[%clk 0:02:33.8]} 14... Qc7 {[%clk 0:02:35.3]} 15. Nxd6 {[%clk 0:02:33.3]}
15... Qxd6 {[%clk 0:02:35.2]} 16. Bxb7 {[%clk 0:02:33.7]} 16... Bxh3 {[%clk
0:02:34.7]} 17. Ne4 {[%clk 0:02:17]} 17... Qc7 {[%clk 0:02:28.2]} 18. Bxa8
{[%clk 0:02:15.4]} 18... Bxf1 {[%clk 0:02:09.9]} 19. Qxf1 {[%clk 0:02:03.8]}
19... Rxa8 {[%clk 0:02:08.9]} 20. Qh3 {[%clk 0:02:03.8]} 20... f5 {[%clk
0:01:58.8]} 21. Bg5 {[%clk 0:01:40.2]} 21... fxe4 {[%clk 0:01:48.2]} 22. Qe6+
{[%clk 0:01:39.7]} 22... Kh8 {[%clk 0:01:47.8]} 23. Qxe7 {[%clk 0:01:36.9]}
23... h6 {[%clk 0:01:37.8]} 24. Be3 {[%clk 0:01:30.9]} 24... exd3 {[%clk
0:01:37.2]} 25. Rd1 {[%clk 0:01:30.6]} 25... e4 {[%clk 0:01:37.3]} 26. Qxe4
{[%clk 0:01:29.7]} 26... Rf8 {[%clk 0:01:21.1]} 27. Rxd3 {[%clk 0:01:28.7]}
27... Nf6 {[%clk 0:01:20.4]} 28. Qc6 {[%clk 0:01:25.8]} 28... Qxc6 {[%clk
0:01:12.7]} 29. bxc6 {[%clk 0:01:25.2]} 29... Rc8 {[%clk 0:01:13.4]} 30. Rd6
{[%clk 0:01:18.7]} 30... Ne4 {[%clk 0:00:57]} 31. Re6 {[%clk 0:01:16.2]} 31...
Ng5 {[%clk 0:00:40.6]} 32. Bxg5 {[%clk 0:01:11.2]} 32... hxg5 {[%clk 0:00:40.7]}
33. Re5 {[%clk 0:01:00]} 33... Rxc6 {[%clk 0:00:40.1]} 34. Rxg5 {[%clk
0:01:00.6]} 34... Kg8 {[%clk 0:00:40.2]} 35. Re5 {[%clk 0:00:59.9]} 35... Kf7
{[%clk 0:00:40.2]} 36. Kg2 {[%clk 0:00:57.8]} 36... a4 {[%clk 0:00:39.8]} 37. a3
{[%clk 0:00:56.8]} 37... Rb6 {[%clk 0:00:36.3]} 38. Rxc5 {[%clk 0:00:55.6]}
38... Rb3 {[%clk 0:00:36.5]} 39. Ra5 {[%clk 0:00:49.4]} 39... Rxa3 {[%clk
0:00:36.3]} 40. f4 {[%clk 0:00:49.8]} 40... Ra2+ {[%clk 0:00:28.1]} 41. Kh3
{[%clk 0:00:49.4]} 41... a3 {[%clk 0:00:28.7]} 42. Kg4 {[%clk 0:00:49.4]} 42...
Rc2 {[%clk 0:00:28.9]} 43. Rxa3 {[%clk 0:00:45]} 43... Rxc4 {[%clk 0:00:28.9]}
44. Kg5 {[%clk 0:00:45.4]} 44... Rc7 {[%clk 0:00:17.1]} 45. f5 {[%clk
0:00:44.6]} 45... Rd7 {[%clk 0:00:16.8]} 46. g4 {[%clk 0:00:43.8]} 46... Rc7
{[%clk 0:00:16.8]} 47. Ra5 {[%clk 0:00:43.6]} 47... Rd7 {[%clk 0:00:16.9]} 48.
Rb5 {[%clk 0:00:43.2]} 48... Rc7 {[%clk 0:00:17.1]} 49. Rb4 {[%clk 0:00:43.8]}
49... Rc6 {[%clk 0:00:18]} 50. Rb7+ {[%clk 0:00:42.3]} 50... Kf8 {[%clk
0:00:18.1]} 51. Ra7 {[%clk 0:00:38.1]} 51... Rd6 {[%clk 0:00:16.6]} 52. Kh5
{[%clk 0:00:35.8]} 52... Rh6+ {[%clk 0:00:16.3]} 53. Kg5 {[%clk 0:00:35.5]}
53... Rc6 {[%clk 0:00:17.2]} 54. Ra4 {[%clk 0:00:33.3]} 54... Rd6 {[%clk
0:00:16.9]} 55. Kf4 {[%clk 0:00:33]} 55... Kf7 {[%clk 0:00:16.7]} 56. g5 {[%clk
0:00:32.5]} 56... Rd7 {[%clk 0:00:15.5]} 57. g6+ {[%clk 0:00:31.7]} 57... Ke7
{[%clk 0:00:15.6]} 58. Ra8 {[%clk 0:00:30]} 58... Rd1 {[%clk 0:00:15.4]} 59. Rg8
{[%clk 0:00:28.6]} 59... Rf1+ {[%clk 0:00:15.6]} 60. Ke5 {[%clk 0:00:26.5]}
60... Re1+ {[%clk 0:00:15.4]} 61. Kd4 {[%clk 0:00:26.8]} 61... Kf6 {[%clk
0:00:14.1]} 62. Rf8+ {[%clk 0:00:26.8]} 62... Kg5 {[%clk 0:00:14.3]} 63. Rf7
{[%clk 0:00:26.1]} 63... Re2 {[%clk 0:00:13.9]} 64. Kd5 {[%clk 0:00:24.1]} 64...
Re1 {[%clk 0:00:14.2]} 65. Kd6 {[%clk 0:00:24.2]} 65... Re2 {[%clk 0:00:14.6]}
66. Kd5 {[%clk 0:00:22.5]} 66... Re1 {[%clk 0:00:14.4]} 67. Kc4 {[%clk
0:00:22.9]} 67... Re2 {[%clk 0:00:14.8]} 68. Kd3 {[%clk 0:00:23.2]} 68... Re1
{[%clk 0:00:14.2]} 69. f6 {[%clk 0:00:19]} 69... Kxg6 {[%clk 0:00:11.9]} 70.
Rxg7+ {[%clk 0:00:18.6]} 70... Kxf6 {[%clk 0:00:11.7]} 71. Ra7 {[%clk
0:00:18.4]} 71... Rd1+ {[%clk 0:00:11.7]} 72. Ke2 {[%clk 0:00:17.4]} 72... Rd6
{[%clk 0:00:11.6]} 73. Ke3 {[%clk 0:00:14.5]} 73... Re6+ {[%clk 0:00:12.5]} 74.
Kf4 {[%clk 0:00:14.3]} 74... Rd6 {[%clk 0:00:13.4]} 75. Ra4 {[%clk 0:00:13.6]}
75... Re6 {[%clk 0:00:13.4]} 76. Rb4 {[%clk 0:00:13.6]} 76... Rd6 {[%clk
0:00:13.7]} 77. Rb5 {[%clk 0:00:12.9]} 77... Re6 {[%clk 0:00:14.2]} 78. Rh5
{[%clk 0:00:12.7]} 78... Kg6 {[%clk 0:00:14.1]} 79. Rg5+ {[%clk 0:00:12.7]}
79... Kf6 {[%clk 0:00:14.3]} 80. Rg1 {[%clk 0:00:12.3]} 80... Rc6 {[%clk
0:00:14.1]} 81. Rh1 {[%clk 0:00:11.6]} 81... Rc4+ {[%clk 0:00:14.2]} 82. Ke3
{[%clk 0:00:12.2]} 82... Rc3+ {[%clk 0:00:14.6]} 83. Kd4 {[%clk 0:00:11.9]}
83... Rf3 {[%clk 0:00:13.5]} 84. Ke4 {[%clk 0:00:12.1]} 84... Rb3 {[%clk
0:00:13.2]} 85. Rh6+ {[%clk 0:00:11.6]} 85... Kg5 {[%clk 0:00:13.3]} 86. Rh8
{[%clk 0:00:11.6]} 86... Rb4+ {[%clk 0:00:13.7]} 87. Ke5 {[%clk 0:00:11.8]}
87... Rb5+ {[%clk 0:00:14.1]} 88. Ke4 {[%clk 0:00:12.1]} 88... Kf6 {[%clk
0:00:13.9]} 89. Rh6+ {[%clk 0:00:11.3]} 89... Kg5 {[%clk 0:00:13.8]} 90. Rh8
{[%clk 0:00:11.4]} 90... Rb4+ {[%clk 0:00:14.3]} 91. Ke5 {[%clk 0:00:11]} 91...
Rb5+ {[%clk 0:00:14.9]} 92. Ke4 {[%clk 0:00:11.4]} 1/2-1/2